bitfinex/quotes_SOLUSD_20241022
["timestamp","ask_amount","ask_price","bid_price","bid_amount"]
[1729556747471,6.0462,165.4,165.34,0.6175596]
[1729556754587,6.0451,165.43,165.35,17.53975629]
[1729556755090,6.049,165.47,165.35,17.53975629]
[1729556755300,6.0453,165.42,165.35,17.53975629]
[1729556755764,20.0,165.45,165.35,17.53975629]
[1729556755966,20.0,165.45,165.37,17.53975629]
[1729556756166,6.045,165.43,165.35,17.53975629]
[1729556756704,20.0,165.43,165.34,0.6175596]
[1729556756993,6.0462,165.4,165.34,0.6175596]
[1729556757181,6.0467,165.38,165.34,0.6175596]
[1729556757688,6.0463,165.39,165.34,0.6175596]
[1729556760891,20.0,165.43,165.34,0.6175596]
[1729556761074,6.0463,165.39,165.34,0.6175596]
[1729556761274,6.0466,165.38,165.34,0.6175596]
[1729556762880,20.0,165.43,165.34,0.6175596]
[1729556762881,20.0,165.41,165.34,0.6175596]
[1729556763203,26.0477,165.35,165.34,0.6175596]
[1729556764385,15.1231,165.42,165.34,0.6175596]
[1729556764386,15.0231,165.42,165.34,0.6175596]
[1729556764788,6.0464,165.39,165.34,0.6175596]
[1729556765097,6.0459,165.4,165.34,0.6175596]
[1729556765279,6.0454,165.42,165.34,0.6175596]
[1729556765473,16.4446,165.46,165.34,0.6175596]
[1729556765676,6.0441,165.45,165.35,21.899]
[1729556765873,15.1085,165.47,165.35,21.899]
[1729556766092,6.0452,165.42,165.35,21.899]
[1729556767091,6.0456,165.41,165.35,21.899]
[1729556767299,6.0464,165.39,165.35,21.899]
[1729556767475,6.0464,165.39,165.35,15.671]
[1729556767991,6.0469,165.38,165.34,0.6175596]
[1729556769075,6.0471,165.37,165.34,0.6175596]
[1729556769289,6.0477,165.35,165.34,0.6175596]
[1729556770984,20.0,165.36,165.34,0.6175596]
[1729556771506,6.0471,165.37,165.34,0.6175596]
[1729556772187,6.0475,165.36,165.34,0.6175596]
[1729556772997,6.0466,165.38,165.34,0.6175596]
[1729556773995,20.0,165.4,165.34,0.6175596]
[1729556774201,6.0468,165.38,165.34,0.6175596]
[1729556775077,6.0469,165.38,165.34,0.6175596]
[1729556775793,20.0,165.42,165.34,0.6175596]
[1729556776102,6.047,165.37,165.34,0.6175596]
[1729556778101,20.0,165.42,165.34,0.6175596]
[1729556778302,6.047,165.38,165.34,0.6175596]
[1729556779107,0.1,165.35,165.16,0.1]
[1729556779284,30.0,165.34,165.2,23.91235629]
[1729556779478,6.0502,165.29,165.2,23.91235629]
[1729556780403,36.0503,165.28,165.2,23.91235629]
[1729556780592,6.0507,165.27,165.2,23.91235629]
[1729556781496,30.0,165.26,165.2,23.91235629]
[1729556783811,30.0,165.26,165.21,23.776884]
[1729556784702,6.0499,165.29,165.21,23.776884]
[1729556786998,6.0507,165.27,165.2,23.91235629]
[1729556787407,6.051,165.26,165.2,23.91235629]
[1729556788212,6.0517,165.25,165.2,6.3726]
[1729556788409,6.0519,165.24,165.2,6.3726]
[1729556788787,20.0,165.28,165.2,6.3726]
[1729556789013,6.0514,165.25,165.2,6.3726]
[1729556792206,20.0,165.28,165.2,6.3726]
[1729556792422,6.0522,165.23,165.2,6.3726]
[1729556792632,6.0518,165.24,165.2,6.3726]
[1729556793106,15.1267,165.27,165.19,16.3798]
[1729556793304,20.0,165.26,165.19,16.3798]
[1729556793926,6.052,165.24,165.18,0.6175596]
[1729556794407,6.0514,165.25,165.18,0.6175596]
[1729556794606,6.0521,165.24,165.18,0.6175596]
[1729556794807,30.0,165.22,165.18,0.6175596]
[1729556795301,36.0527,165.22,165.18,0.6175596]
[1729556795523,36.0528,165.22,165.18,0.6175596]
[1729556796130,30.0,165.22,165.18,0.6175596]
[1729556796420,6.0529,165.21,165.18,0.6175596]
[1729556796830,30.0,165.22,165.18,0.6175596]
[1729556803051,30.0,165.22,165.19,23.776884]
[1729556803539,6.0508,165.27,165.19,23.776884]
[1729556803715,20.0,165.28,165.19,23.776884]
[1729556803916,6.0508,165.27,165.19,23.776884]
[1729556805516,20.0,165.28,165.18,0.6175596]
[1729556805718,6.0517,165.25,165.18,0.6175596]
[1729556811743,6.0522,165.23,165.18,0.6175596]
[1729556812214,6.0522,165.23,165.18,11.88778611]
[1729556814123,20.0,165.28,165.18,11.88778611]
[1729556814318,20.0,165.26,165.18,11.88778611]
[1729556814535,6.0523,165.23,165.18,11.88778611]
[1729556815227,20.0,165.26,165.18,11.88778611]
[1729556815430,6.0517,165.25,165.18,11.88778611]
[1729556821525,6.0518,165.24,165.18,11.88778611]
[1729556821733,6.0518,165.24,165.19,11.27022651]
[1729556823348,6.0518,165.24,165.18,11.88778611]
[1729556828658,6.0515,165.25,165.2,11.27022651]
[1729556828849,6.0511,165.26,165.21,11.27022651]
[1729556829026,6.0511,165.26,165.2,11.27022651]
[1729556830542,6.0507,165.27,165.21,11.27022651]
[1729556830859,12.27496244,165.3,165.23,11.27022651]
[1729556831032,10.49900054,165.29,165.23,11.27022651]
[1729556831356,6.0507,165.27,165.21,15.0392]
[1729556831530,6.051,165.27,165.21,26.30942651]
[1729556831730,15.1242,165.3,165.21,26.30942651]
[1729556831731,6.05,165.29,165.22,11.27022651]
[1729556831936,4.44883335,165.28,165.25,11.27022651]
[1729556832136,30.0,165.26,165.24,11.27022651]
[1729556832448,30.0,165.26,165.23,11.27022651]
[1729556833050,6.0499,165.29,165.23,11.27022651]
[1729556833238,6.0499,165.29,165.24,11.27022651]
[1729556833954,6.0502,165.29,165.23,11.27022651]
[1729556834557,6.0502,165.29,165.24,11.27022651]
[1729556835057,20.0,165.32,165.22,23.776884]
[1729556835242,6.0533,165.2,165.18,0.6175596]
[1729556835448,20.0,165.23,165.18,0.6175596]
[1729556835758,26.0522,165.23,165.18,0.6175596]
[1729556836258,6.0529,165.21,165.18,0.6175596]
[1729556836936,6.0525,165.22,165.18,0.6175596]
[1729556837136,20.0,165.25,165.18,0.6175596]
[1729556837343,6.0528,165.22,165.18,0.6175596]
[1729556839645,6.0528,165.22,165.18,0.1175596]
[1729556840241,20.0,165.23,165.19,11.27022651]
[1729556841339,6.0521,165.23,165.19,11.27022651]
[1729556841944,6.0521,165.23,165.18,11.38778611]
[1729556844256,6.0521,165.23,165.18,0.1175596]
[1729556845571,6.0521,165.23,165.18,11.38778611]
[1729556846067,6.053,165.21,165.18,0.1175596]
[1729556846955,30.0,165.19,165.18,0.1175596]
[1729556847747,6.0543,165.17,165.09,0.1]
[1729556847968,20.0,165.14,165.08,13.53955961]
[1729556848152,20.0,165.11,165.01,0.6175596]
[1729556848356,7.10378873,165.08,164.97,0.1]
[1729556848563,1.04608873,165.08,164.96,6.24]
[1729556848753,4.42762211,165.07,164.96,6.34]
[1729556849074,1.04608873,165.08,164.99,0.1]
[1729556849371,1.14608873,165.08,164.96,4.84]
[1729556849548,0.1,165.07,165.02,11.27022651]
[1729556849749,1.24608873,165.08,164.96,4.84]
[1729556849945,0.1,165.04,164.96,4.84]
[1729556850254,0.2,165.02,164.96,4.84]
[1729556850679,0.1,164.99,164.94,17.65946926]
[1729556850971,0.2,165.03,164.94,17.65946926]
[1729556851286,0.1,164.99,164.92,16.6629]
[1729556851447,0.1,164.98,164.92,16.6629]
[1729556851652,0.1,164.98,164.84,0.6175596]
[1729556851653,0.1,164.96,164.89,17.65946926]
[1729556851848,0.2,164.99,164.94,17.65946926]
[1729556852063,0.1,164.96,164.87,16.5506]
[1729556852267,0.1,164.97,164.94,17.65946926]
[1729556852478,0.1,164.98,164.94,17.65946926]
[1729556852766,0.1,165.0,164.89,6.4868]
[1729556852767,0.2,165.0,164.89,6.4868]
[1729556852976,30.0,165.02,164.97,17.65946926]
[1729556853150,30.0,165.02,164.9,17.05186968]
[1729556853350,30.0,165.02,165.0,17.65946926]
[1729556853651,0.2,165.05,165.0,17.65946926]
[1729556853966,0.2,165.09,165.04,17.65946926]
[1729556854275,0.1,165.09,165.0,23.776884]
[1729556854577,0.1,165.08,165.06,17.65946926]
[1729556854945,0.1,165.12,165.07,23.776884]
[1729556855150,0.1,165.12,165.09,17.65946926]
[1729556855364,0.1,165.12,165.11,17.65946926]
[1729556855565,6.0535,165.2,165.11,17.65946926]
[1729556855771,22.7173,165.21,165.13,17.65946926]
[1729556856273,6.0526,165.22,165.13,17.65946926]
[1729556856464,6.0526,165.22,165.15,17.65946926]
[1729556856666,0.1,165.23,165.07,23.776884]
[1729556856873,6.0537,165.19,165.1,17.65946926]
[1729556857051,6.0541,165.18,165.1,17.65946926]
[1729556857660,36.0553,165.15,164.99,6.3421]
[1729556857876,20.0,165.12,165.04,17.65946926]
[1729556858357,6.0569,165.1,165.04,17.65946926]
[1729556858555,26.0554,165.14,164.99,6.2421]
[1729556858768,0.1,165.13,165.02,17.65946926]
[1729556859076,36.0579,165.08,165.0,17.65946926]
[1729556859467,36.0579,165.08,164.99,6.2421]
[1729556859468,30.0,165.08,165.02,17.65946926]
[1729556860465,30.0,165.08,165.04,17.65946926]
[1729556860672,30.0,165.08,164.99,6.2421]
[1729556860673,30.0,165.08,165.06,17.65946926]
[1729556861776,6.13607775,165.15,165.07,23.776884]
[1729556862084,15.276,165.22,165.11,17.65946926]
[1729556862252,6.0541,165.18,165.11,17.65946926]
[1729556862577,6.0547,165.17,165.13,17.65946926]
[1729556862778,6.14488873,165.2,165.13,17.65946926]
[1729556863478,6.14488873,165.2,165.05,0.1]
[1729556863479,12.19818873,165.2,165.15,17.65946926]
[1729556863677,30.0,165.16,165.13,17.65946926]
[1729556864180,6.0533,165.2,165.13,17.65946926]
[1729556864360,6.0538,165.19,165.11,28.19250331]
[1729556864554,6.14316716,165.21,165.14,28.19250331]
[1729556864758,0.1,165.28,165.14,28.19250331]
[1729556864955,6.0524,165.23,165.14,28.19250331]
[1729556865189,6.0524,165.23,165.15,28.19250331]
[1729556865891,6.158996,165.25,165.15,28.19250331]
[1729556866060,20.0,165.24,165.18,28.19250331]
[1729556866679,6.0509,165.27,165.18,28.19250331]
[1729556866976,16.176861,165.3,165.21,28.19250331]
[1729556866977,6.0499,165.3,165.21,28.19250331]
[1729556867159,5.5499,165.3,165.21,28.19250331]
[1729556867486,6.26844381,165.32,165.21,28.19250331]
[1729556867776,12.31734381,165.32,165.24,28.19250331]
[1729556867978,23.1695,165.34,165.24,28.19250331]
[1729556868276,6.0493,165.31,165.21,28.19250331]
[1729556868484,20.0,165.29,165.21,28.19250331]
[1729556870962,6.0498,165.3,165.21,28.19250331]
[1729556872580,26.0488,165.32,165.21,28.19250331]
[1729556872795,26.0496,165.3,165.21,28.19250331]
[1729556873384,6.0497,165.3,165.21,28.19250331]
[1729556875087,36.0518,165.24,165.15,34.40260331]
[1729556875483,6.0522,165.23,165.15,34.40260331]
[1729556875662,36.0518,165.24,165.15,34.40260331]
[1729556876060,30.0,165.22,165.15,34.40260331]
[1729556878085,6.0532,165.21,165.14,15.62]
[1729556878288,6.054,165.18,165.11,6.5211]
[1729556879176,30.0,165.17,165.11,6.5211]
[1729556879399,30.0,165.17,165.09,43.94000331]
[1729556879774,29.0,165.17,165.09,43.94000331]
[1729556880691,29.0,165.17,165.1,23.776884]
[1729556880875,29.0,165.17,165.09,43.94000331]
[1729556881683,29.0,165.17,164.89,258.2]
[1729556881886,29.0,165.17,164.88,13.14817943]
[1729556881887,20.0,165.08,164.97,6.4775]
[1729556882203,36.0582,165.07,164.97,6.4775]
[1729556882378,6.0584,165.06,164.97,6.4775]
[1729556883071,20.0,165.08,164.97,6.4775]
[1729556883072,30.0,165.05,164.97,6.4775]
[1729556883273,30.0,165.05,165.0,23.776884]
[1729556883582,20.0,165.14,165.02,28.19250331]
[1729556883777,20.0,165.14,165.03,23.776884]
[1729556884094,20.0,165.14,164.95,28.19250331]
[1729556884095,20.2,165.14,164.95,28.19250331]
[1729556884399,20.0,165.14,165.01,28.19250331]
[1729556884577,20.0,165.12,165.01,28.19250331]
[1729556885273,20.0,165.12,165.02,23.776884]
[1729556885669,26.0562,165.12,165.02,23.776884]
[1729556886076,6.0565,165.12,165.02,23.776884]
[1729556886491,6.0571,165.1,165.02,23.776884]
[1729556886899,20.0,165.12,165.02,23.776884]
[1729556887081,6.0566,165.11,165.02,23.776884]
[1729556887988,20.0,165.13,165.01,28.19250331]
[1729556888194,0.1,165.12,164.96,6.4312]
[1729556888395,20.0,165.1,164.96,6.4312]
[1729556888694,20.0,165.1,164.95,28.19250331]
[1729556888695,6.0596,165.03,164.95,28.19250331]
[1729556888994,6.6519,165.07,164.92,34.62370331]
[1729556889194,6.0604,165.01,164.92,34.62370331]
[1729556889403,6.0608,165.0,164.92,6.4312]
[1729556889577,20.0,165.04,164.92,6.4312]
[1729556889786,6.0602,165.01,164.92,6.4312]
[1729556890302,20.0,165.02,164.86,0.1]
[1729556890477,6.0608,165.0,164.88,28.19250331]
[1729556890890,6.0595,165.03,164.91,28.19250331]
[1729556891090,20.0,165.04,164.91,28.19250331]
[1729556891487,6.0595,165.03,164.88,28.19250331]
[1729556891676,21.2094,165.02,164.85,0.1]
[1729556891878,6.062,164.97,164.87,28.19250331]
[1729556893295,6.0591,165.04,164.9,28.19250331]
[1729556893476,6.0588,165.05,164.93,28.19250331]
[1729556893672,6.5519,165.07,164.93,28.19250331]
[1729556893886,6.5519,165.07,164.96,28.19250331]
[1729556894294,6.0569,165.1,164.99,28.19250331]
[1729556894692,6.0573,165.09,164.99,28.19250331]
[1729556894897,21.1696,165.11,165.0,23.776884]
[1729556895100,6.4109,165.12,165.02,28.19250331]
[1729556895399,1.05334017,165.14,165.02,28.19250331]
[1729556895803,6.0558,165.13,165.02,28.19250331]
[1729556896100,6.0558,165.13,165.03,23.776884]
[1729556896300,1.05334017,165.14,165.03,23.776884]
[1729556896892,6.0558,165.13,165.03,23.776884]
[1729556897086,1.05334017,165.14,165.05,28.19250331]
[1729556897287,6.27431356,165.15,165.05,28.19250331]
[1729556897500,6.0551,165.15,165.05,28.19250331]
[1729556898706,20.0,165.14,165.05,28.19250331]
[1729556899206,1.05292418,165.16,165.06,23.776884]
[1729556899207,21.05292418,165.16,165.06,23.776884]
[1729556899397,20.0,165.16,165.06,23.776884]
[1729556900176,26.0549,165.16,165.06,23.776884]
[1729556900497,20.0,165.16,165.05,28.19250331]
[1729556900797,6.0556,165.14,165.03,23.776884]
[1729556902593,20.0,165.16,165.03,23.776884]
[1729556902791,26.0549,165.16,165.06,23.776884]
[1729556905296,20.0,165.16,165.06,23.776884]
[1729556905605,6.0539,165.19,165.08,28.19250331]
[1729556905807,20.0,165.18,165.09,23.776884]
[1729556906007,6.0539,165.19,165.09,23.776884]
[1729556906513,6.0541,165.18,165.09,23.776884]
[1729556906905,6.0535,165.2,165.09,23.776884]
[1729556907115,6.235,165.21,165.09,23.776884]
[1729556907309,20.0,165.18,165.09,23.776884]
[1729556910284,20.0,165.2,165.09,23.776884]
[1729556910486,6.054,165.18,165.09,23.776884]
[1729556910991,6.0529,165.21,165.12,23.776884]
[1729556911208,6.0521,165.24,165.15,23.776884]
[1729556911420,30.0,165.16,165.15,29.972184]
[1729556911717,6.052,165.24,165.15,29.972184]
[1729556911886,6.2318,165.3,165.15,29.972184]
[1729556912092,6.052,165.24,165.15,29.972184]
[1729556912723,6.0515,165.25,165.15,29.972184]
[1729556913415,6.27147711,165.28,165.15,23.776884]
[1729556913589,6.0521,165.23,165.14,23.776884]
[1729556914423,20.0,165.27,165.17,23.776884]
[1729556914598,6.27147711,165.28,165.17,23.776884]
[1729556914797,26.0503,165.28,165.18,22.6102]
[1729556914998,20.0,165.28,165.19,51.96938731]
[1729556915208,6.05,165.29,165.19,51.96938731]
[1729556915617,6.2318,165.3,165.19,51.96938731]
[1729556915801,6.05,165.29,165.19,51.96938731]
[1729556915996,21.1723,165.31,165.19,51.96938731]
[1729556916221,6.0506,165.28,165.19,51.96938731]
[1729556917823,20.0,165.3,165.19,51.96938731]
[1729556918120,6.0504,165.28,165.19,51.96938731]
[1729556918415,6.0513,165.26,165.19,51.96938731]
[1729556918619,6.052,165.24,165.18,6.6294]
[1729556918825,6.052,165.24,165.14,22.4321]
[1729556919126,6.0544,165.17,165.1,6.4098]
[1729556919328,20.0,165.23,165.09,16.0223]
[1729556919500,6.0548,165.16,165.09,16.0223]
[1729556919701,15.1313,165.22,165.09,16.0223]
[1729556919999,6.0539,165.19,165.09,16.0223]
[1729556920316,6.0543,165.18,165.09,16.0223]
[1729556921922,6.0543,165.18,165.1,23.776884]
[1729556922126,20.0,165.21,165.1,23.776884]
[1729556922418,6.0532,165.2,165.1,23.776884]
[1729556922920,20.0,165.23,165.1,23.776884]
[1729556923117,6.0537,165.19,165.1,23.776884]
[1729556924226,20.0,165.23,165.1,23.776884]
[1729556924435,6.0529,165.21,165.1,23.776884]
[1729556924595,20.0,165.23,165.1,23.776884]
[1729556924801,20.0,165.21,165.11,28.19250331]
[1729556925000,26.0529,165.21,165.12,23.776884]
[1729556925237,20.0,165.23,165.12,23.776884]
[1729556925422,6.0533,165.2,165.12,23.776884]
[1729556925599,20.0,165.23,165.12,23.776884]
[1729556925808,6.0534,165.2,165.12,23.776884]
[1729556928499,6.0526,165.22,165.12,23.776884]
[1729556928700,20.0,165.23,165.12,23.776884]
[1729556928701,6.0529,165.21,165.12,23.776884]
[1729556929105,20.0,165.25,165.12,23.776884]
[1729556929336,6.0527,165.22,165.12,23.776884]
[1729556929915,6.28197495,165.26,165.14,28.19250331]
[1729556930115,6.6468,165.27,165.15,23.776884]
[1729556930515,6.0519,165.24,165.15,23.776884]
[1729556931724,6.0515,165.25,165.15,30.254884]
[1729556932227,20.0,165.26,165.15,30.254884]
[1729556932610,6.052,165.24,165.15,30.254884]
[1729556932932,6.0522,165.23,165.15,30.254884]
[1729556933812,6.0518,165.24,165.15,30.254884]
[1729556934019,6.0514,165.25,165.15,30.254884]
[1729556934211,6.0518,165.24,165.15,30.254884]
[1729556934818,20.0,165.26,165.15,30.254884]
[1729556935016,6.0515,165.25,165.15,30.254884]
[1729556937745,20.0,165.26,165.15,30.254884]
[1729556938234,6.053,165.21,165.11,34.54090331]
[1729556939627,20.0,165.26,165.12,23.776884]
[1729556939944,6.0525,165.22,165.12,23.776884]
[1729556941312,20.0,165.26,165.12,23.776884]
[1729556941515,6.0544,165.17,165.11,6.3484]
[1729556941821,6.054,165.18,165.11,6.3484]
[1729556943211,6.0551,165.15,165.09,16.0223]
[1729556943416,23.976884,165.25,165.06,6.4707]
[1729556943417,15.041,165.22,165.06,6.4707]
[1729556943614,6.0551,165.15,165.06,6.4707]
[1729556944015,20.0,165.19,165.07,28.19250331]
[1729556944316,6.0529,165.21,165.1,28.19250331]
[1729556944518,6.0524,165.23,165.11,23.776884]
[1729556944742,6.0524,165.23,165.14,23.776884]
[1729556945729,6.0518,165.25,165.16,28.19250331]
[1729556945933,4.42098033,165.24,165.17,23.776884]
[1729556946123,6.0512,165.26,165.17,23.776884]
[1729556946650,6.0507,165.27,165.17,23.776884]
[1729556947233,44.26759222,165.3,165.17,23.776884]
[1729556947420,11.49969642,165.29,165.17,23.776884]
[1729556947623,10.47326016,165.28,165.17,23.776884]
[1729556947927,6.0503,165.28,165.17,23.776884]
[1729556948814,20.0,165.29,165.17,23.776884]
[1729556949220,4.42379555,165.28,165.2,23.776884]
[1729556949421,20.0,165.29,165.2,23.776884]
[1729556949641,4.42433679,165.28,165.2,23.776884]
[1729556949834,26.05,165.29,165.2,23.776884]
[1729556950128,4.42382423,165.28,165.2,23.776884]
[1729556950335,20.0,165.29,165.2,23.776884]
[1729556950545,6.0508,165.27,165.2,23.776884]
[1729556951440,20.0,165.29,165.19,28.17124658]
[1729556951627,20.0,165.27,165.17,23.776884]
[1729556951836,10.47710238,165.26,165.17,23.776884]
[1729556952049,4.42580238,165.25,165.17,23.776884]
[1729556952259,6.0513,165.26,165.17,23.776884]
[1729556952429,4.42629975,165.25,165.17,23.776884]
[1729556952748,6.0513,165.26,165.16,51.94806229]
[1729556953242,4.42810857,165.25,165.16,51.94806229]
[1729556953444,6.0511,165.26,165.16,51.94806229]
[1729556955648,20.0,165.29,165.16,51.94806229]
[1729556955649,6.0518,165.24,165.16,51.94806229]
[1729556955841,20.0,165.29,165.2,23.776884]
[1729556955842,6.0505,165.28,165.2,23.776884]
[1729556956041,4.43037206,165.27,165.2,23.776884]
[1729556956238,6.0505,165.28,165.2,23.776884]
[1729556956442,4.43101298,165.27,165.2,23.776884]
[1729556956648,6.0505,165.28,165.2,23.776884]
[1729556956953,4.43087085,165.27,165.2,23.776884]
[1729556957244,4.43020801,165.26,165.16,28.17117829]
[1729556957441,6.0525,165.22,165.15,6.4417]
[1729556958948,6.0525,165.22,165.16,23.776884]
[1729556961431,15.1266,165.28,165.13,16.3567]
[1729556961432,23.776884,165.28,165.13,16.3567]
[1729556961631,6.0544,165.17,165.11,6.5448]
[1729556961847,35.1178,165.22,165.09,15.4723]
[1729556962050,6.0551,165.15,165.07,6.5448]
[1729556963442,6.0551,165.15,165.08,23.776884]
[1729556964842,15.1322,165.21,165.08,23.776884]
[1729556965042,6.0546,165.17,165.08,23.776884]
[1729556965232,6.0538,165.19,165.1,23.776884]
[1729556965637,6.0531,165.21,165.1,23.776884]
[1729556965853,6.0531,165.21,165.13,23.776884]
[1729556966438,6.0905,165.23,165.09,28.17117829]
[1729556966639,6.0546,165.17,165.08,23.776884]
[1729556966841,6.1905,165.23,165.07,6.5448]
[1729556967043,31.51386112,165.22,165.07,6.5448]
[1729556967255,6.0554,165.15,165.07,6.5448]
[1729556968260,6.0554,165.15,165.08,23.776884]
[1729556968934,20.0,165.18,165.08,23.776884]
[1729556969255,6.0547,165.16,165.08,23.776884]
[1729556969839,20.0,165.17,165.08,23.776884]
[1729556970040,6.0544,165.17,165.08,23.776884]
[1729556970241,6.0547,165.16,165.08,23.776884]
[1729556971055,6.0579,165.08,164.94,28.17117829]
[1729556971362,30.0,165.07,164.94,28.17117829]
[1729556971556,6.0584,165.06,164.94,28.17117829]
[1729556972537,30.0,165.05,164.94,28.17117829]
[1729556973240,36.0588,165.05,164.94,28.17117829]
[1729556973738,36.0588,165.05,164.95,23.776884]
[1729556974150,6.0602,165.02,164.92,22.1662]
[1729556974359,30.0,165.01,164.92,22.1662]
[1729556974852,6.0607,165.0,164.92,22.1662]
[1729556975058,30.0,165.01,164.92,22.1662]
[1729556975645,30.0,164.99,164.92,22.1662]
[1729556976245,36.0611,164.99,164.92,22.1662]
[1729556976860,30.0,164.99,164.93,23.776884]
[1729556977041,20.0,165.05,164.93,23.776884]
[1729556977461,6.0591,165.04,164.93,51.94806229]
[1729556977664,6.0595,165.03,164.93,51.94806229]
[1729556980468,20.0,165.05,164.93,23.776884]
[1729556980761,6.06,165.02,164.93,23.776884]
[1729556986869,6.0635,164.92,164.88,22.1517]
[1729556987051,45.1534,164.98,164.88,22.1517]
[1729556987364,6.0629,164.94,164.88,22.1517]
[1729556987790,6.0624,164.95,164.88,22.1517]
[1729556988551,6.0629,164.94,164.88,15.5727]
[1729556988762,6.0629,164.94,164.84,7.2723596]
[1729556988763,6.0629,164.94,164.84,50.35843789]
[1729556988962,20.0,164.97,164.84,0.1175596]
[1729556989171,20.0,164.94,164.84,0.1175596]
[1729556989378,6.066,164.86,164.84,0.1175596]
[1729556989560,30.0,164.85,164.84,0.1175596]
[1729556990465,50.0,164.85,164.84,0.1175596]
[1729556991578,50.0,164.85,164.68,0.6175596]
[1729556991768,20.0,164.84,164.68,28.78873789]
[1729556991978,20.0,164.79,164.68,0.6175596]
[1729556992156,36.0673,164.82,164.68,0.6175596]
[1729556992356,30.0,164.82,164.69,28.17117829]
[1729556992567,30.0,164.82,164.72,28.17117829]
[1729556992884,30.0,164.77,164.75,43.60327829]
[1729556993180,6.065,164.88,164.75,43.60327829]
[1729556993352,15.8894,164.89,164.75,15.4321]
[1729556993556,6.0659,164.86,164.75,15.4321]
[1729556993760,6.0659,164.86,164.76,23.776884]
[1729556994371,6.575,164.91,164.8,23.776884]
[1729556994581,16.1427,164.94,164.8,23.776884]
[1729556994766,6.0632,164.93,164.8,23.776884]
[1729556994959,6.0632,164.93,164.8,30.388084]
[1729556995154,6.0628,164.94,164.8,30.388084]
[1729556995359,6.0628,164.94,164.83,23.776884]
[1729556995967,12.3692,164.95,164.83,23.776884]
[1729556997282,6.0628,164.94,164.83,23.776884]
[1729556997761,6.0637,164.92,164.83,23.776884]
[1729556998574,6.3067,164.95,164.69,0.1]
[1729556998575,15.9896,164.88,164.69,0.1]
[1729556998781,15.9896,164.88,164.69,28.17117829]
[1729556998782,20.0,164.87,164.69,28.17117829]
[1729556998954,6.068,164.8,164.69,28.17117829]
[1729556999155,20.0,164.84,164.69,28.17117829]
[1729556999468,20.0,164.84,164.72,28.17117829]
[1729556999669,6.0692,164.77,164.68,0.6175596]
[1729556999868,6.1776,164.83,164.68,0.6175596]
[1729556999869,30.0,164.79,164.68,0.6175596]
[1729557000071,36.0683,164.79,164.68,0.6175596]
[1729557000384,30.0,164.79,164.68,0.6175596]
[1729557000681,20.0,164.78,164.68,0.6175596]
[1729557000977,6.0699,164.75,164.68,0.6175596]
[1729557001279,6.0703,164.74,164.64,12.20020001]
[1729557001778,30.0,164.73,164.61,28.17117829]
[1729557002157,30.0,164.73,164.67,28.17117829]
[1729557002362,20.0,164.8,164.67,28.17117829]
[1729557002760,20.0,164.8,164.71,23.776884]
[1729557002960,22.0211,164.88,164.71,23.776884]
[1729557003176,6.0666,164.84,164.74,23.776884]
[1729557003374,6.066,164.86,164.74,23.776884]
[1729557003580,6.066,164.86,164.73,28.17117829]
[1729557003581,6.0315,164.88,164.77,23.776884]
[1729557003781,6.0642,164.91,164.8,23.776884]
[1729557003976,30.0,164.81,164.79,28.17117829]
[1729557004276,6.0626,164.95,164.8,28.17117829]
[1729557004488,13.39301845,164.99,164.83,28.17117829]
[1729557004691,1.05250305,165.02,164.86,28.17117829]
[1729557004868,6.29252943,165.0,164.86,28.17117829]
[1729557005068,6.0624,164.95,164.86,28.17117829]
[1729557005383,6.062,164.97,164.86,28.17117829]